bitfinex-derivatives/quotes_SOLF0:USTF0_20251122
["timestamp","ask_amount","ask_price","bid_price","bid_amount"]
[1763826725942,3.21395993,126.51,126.48,0.0577779]
[1763826726349,0.05395993,126.51,126.48,3.2577779]
[1763826726748,3.21395993,126.51,126.48,0.0577779]
[1763826727552,0.05395993,126.51,126.48,3.2577779]
[1763826728746,3.21395993,126.51,126.48,0.0577779]
[1763826730454,0.05395993,126.51,126.48,3.2577779]
[1763826731257,3.21395993,126.51,126.48,3.2577779]
[1763826735554,3.21395993,126.51,126.48,0.0577779]
[1763826737060,7.17285993,126.51,126.48,0.0577779]
[1763826737260,3.16,126.5,126.48,0.0577779]
[1763826740162,3.16,126.49,126.48,0.0577779]
[1763826741769,7.1194,126.5,126.42,83.87378363]
[1763826741770,3.16,126.46,126.42,3.2]
[1763826742764,110.7493,126.5,126.43,0.05881333]
[1763826742765,3.2122338,126.45,126.43,0.05881333]
[1763826743068,3.21524709,126.45,126.43,0.05881333]
[1763826745666,0.05524709,126.45,126.43,3.25881333]
[1763826746059,3.21524709,126.45,126.43,0.05881333]
[1763826746260,0.05524709,126.45,126.43,3.25881333]
[1763826748064,0.05524709,126.45,126.44,5.60150225]
[1763826748261,3.16,126.51,126.45,3.2]
[1763826748460,3.16,126.51,126.47,5.60150225]
[1763826748974,3.16,126.51,126.47,3.2]
[1763826749164,0.05840798,126.5,126.48,0.05062111]
[1763826749562,0.05840798,126.5,126.48,3.25062111]
[1763826749768,0.05840798,126.5,126.48,10.37082111]
[1763826750070,0.05840798,126.5,126.49,3.2]
[1763826750273,0.05840798,126.5,126.48,10.37082111]
[1763826751271,0.05840798,126.5,126.49,3.2]
[1763826751662,0.05840798,126.5,126.48,7.17082111]
[1763826752067,0.05840798,126.5,126.48,10.37082111]
[1763826752769,0.05840798,126.5,126.49,3.2]
[1763826754570,0.05840798,126.5,126.48,7.17082111]
[1763826754770,3.21840798,126.5,126.48,0.05062111]
[1763826755569,0.05840798,126.5,126.48,0.05062111]
[1763826755766,3.36840798,126.5,126.48,0.05062111]
[1763826756669,0.05840798,126.5,126.48,3.21062111]
[1763826757276,0.05840798,126.5,126.48,0.05062111]
[1763826757571,3.36840798,126.5,126.48,0.05062111]
[1763826759375,0.05840798,126.5,126.48,3.35062111]
[1763826760674,0.05840798,126.5,126.48,10.47082111]
[1763826760874,0.05840798,126.5,126.49,3.3]
[1763826761072,19.85,126.56,126.49,3.3]
[1763826761270,26.9662,126.56,126.5,7.119]
[1763826761566,19.85,126.56,126.5,3.3]
[1763826761768,19.85,126.56,126.49,116.7472]
[1763826761769,3.15,126.56,126.51,3.3]
[1763826762282,0.05056579,126.55,126.52,3.35757654]
[1763826762769,0.05056579,126.55,126.52,10.47557654]
[1763826763077,0.05056579,126.55,126.53,3.3]
[1763826763577,3.20056579,126.55,126.52,0.05757654]
[1763826764972,0.05056579,126.55,126.52,3.35757654]
[1763826766079,0.05056579,126.55,126.54,3.3]
[1763826767677,3.20056579,126.55,126.52,0.05757654]
[1763826768076,3.20056579,126.55,126.52,3.35757654]
[1763826769275,3.15,126.53,126.52,0.05757654]
[1763826769481,3.20056579,126.55,126.52,0.05757654]
[1763826772075,3.15,126.53,126.52,0.05757654]
[1763826778877,3.15,126.53,126.47,14.75038363]
[1763826779086,3.15,126.52,126.47,3.3]
[1763826779982,0.0567146,126.51,126.48,3.35897695]
[1763826781092,3.2067146,126.51,126.48,0.05897695]
[1763826782389,0.0567146,126.51,126.48,3.35897695]
[1763826782688,3.15,126.5,126.48,0.05897695]
[1763826782888,3.2067146,126.51,126.48,3.35897695]
[1763826783194,0.0567146,126.51,126.48,3.35897695]
[1763826783694,0.0567146,126.51,126.48,10.47907695]
[1763826783888,0.0567146,126.51,126.49,3.3]
[1763826785193,3.2067146,126.51,126.48,0.05897695]
[1763826787895,3.2067146,126.51,126.48,3.06897695]
[1763826788094,0.0567146,126.51,126.48,3.06897695]
[1763826788291,0.0567146,126.51,126.49,3.01]
[1763826788495,3.3,126.57,126.5,3.01]
[1763826788882,3.3,126.57,126.49,22.7]
[1763826788883,3.3,126.57,126.51,3.01]
[1763826789485,3.36017567,126.55,126.53,0.05843678]
[1763826794306,3.3,126.54,126.53,0.05843678]
[1763826794802,3.3,126.54,126.47,131.21422313]
[1763826794803,3.3,126.54,126.47,23.76038363]
[1763826795007,3.3,126.53,126.47,23.76038363]
[1763826795306,3.3,126.53,126.48,10.1302]
[1763826795702,3.35812555,126.52,126.49,0.05673231]
[1763826796911,10.47632555,126.52,126.49,0.05673231]
[1763826797108,3.3,126.51,126.49,0.05673231]
[1763826797705,10.4189,126.51,126.49,0.05673231]
[1763826798016,3.3,126.5,126.49,0.05673231]
[1763826798407,3.35812555,126.52,126.49,0.05673231]
[1763826798800,3.35812555,126.52,126.49,3.06673231]
[1763826799206,0.05812555,126.52,126.49,10.18633231]
[1763826799408,3.3,126.58,126.51,6.75692313]
[1763826799617,3.3,126.58,126.52,17.76038363]
[1763826799907,3.3,126.58,126.52,3.01]
[1763826800413,0.0591062,126.56,126.54,0.05083414]
[1763826801205,3.3591062,126.56,126.54,0.05083414]
[1763826803807,3.3,126.55,126.54,0.05083414]
[1763826808214,3.3,126.55,126.49,14.75038363]
[1763826808512,3.3,126.55,126.48,27.87048363]
[1763826808918,3.3,126.53,126.48,27.87048363]
[1763826809111,3.3,126.53,126.48,30.88048363]
[1763826809313,3.35193694,126.52,126.49,0.05769914]
[1763826809512,3.35193694,126.52,126.49,3.06769914]
[1763826810206,0.05193694,126.52,126.49,3.06769914]
[1763826810915,3.35193694,126.52,126.49,3.06769914]
[1763826813717,0.05193694,126.52,126.49,3.06769914]
[1763826813916,0.05193694,126.52,126.51,3.01]
[1763826814427,3.3,126.58,126.52,3.01]
[1763826814814,3.3,126.56,126.52,3.01]
[1763826815311,0.05273169,126.55,126.53,0.05452855]
[1763826816021,0.05273169,126.55,126.53,3.26452855]
[1763826816926,3.07,126.59,126.54,3.21]
[1763826817110,7.1135,126.61,126.55,3.21]
[1763826817622,10.1835,126.61,126.57,3.21]
[1763826818020,0.05531207,126.6,126.58,0.06072729]
[1763826818614,0.05531207,126.6,126.58,3.31072729]
[1763826819018,0.05531207,126.6,126.58,19.99072729]
[1763826819211,0.05531207,126.6,126.59,3.25]
[1763826819612,3.0,126.64,126.6,3.25]
[1763826820726,3.05234094,126.63,126.61,0.05755734]
[1763826820914,3.0,126.62,126.55,3.25]
[1763826821920,0.05029344,126.6,126.58,3.25]
[1763826822123,0.05029344,126.6,126.58,3.3084742]
[1763826822826,3.05029344,126.6,126.58,0.0584742]
[1763826824020,0.05029344,126.6,126.58,3.3084742]
[1763826825631,0.05029344,126.6,126.59,3.25]
[1763826827227,0.05029344,126.6,126.59,19.93]
[1763826827621,9.5060003,126.67,126.61,3.25]
[1763826827827,9.5060003,126.67,126.61,5.6460003]
[1763826828531,7.11,126.67,126.61,12.7588003]
[1763826828718,0.05428502,126.65,126.63,0.05670039]
[1763826830222,3.05428502,126.65,126.63,0.05670039]
[1763826833929,0.05428502,126.65,126.63,3.30670039]
[1763826834428,0.05428502,126.65,126.63,5.70270069]
[1763826834627,0.05428502,126.65,126.64,3.25]
[1763826835027,0.05428502,126.65,126.63,2.45270069]
[1763826835028,0.05428502,126.65,126.63,10.41840039]
[1763826835223,0.05428502,126.65,126.63,12.81440069]
[1763826835430,0.05428502,126.65,126.64,3.25]
[1763826836125,10.1086,126.69,126.64,3.25]
[1763826837026,3.0,126.69,126.65,3.25]
[1763826837233,3.05672023,126.68,126.65,3.30833171]
[1763826837830,0.05672023,126.68,126.65,3.30833171]
[1763826838032,0.05672023,126.68,126.65,12.81493201]
[1763826838234,0.05672023,126.68,126.66,3.25]
[1763826839629,3.05672023,126.68,126.65,0.05833171]
[1763826839835,5.3960003,126.66,126.65,0.05833171]
[1763826840829,3.0,126.66,126.65,0.05833171]
[1763826841732,3.0,126.65,126.61,3.25]
[1763826842738,3.05260676,126.64,126.62,0.0581683]
[1763826845532,0.05260676,126.64,126.62,3.3081683]
[1763826845737,0.05260676,126.64,126.62,9.3081683]
[1763826846033,0.05260676,126.64,126.63,3.07]
[1763826846224,12.5848003,126.69,126.63,5.4660003]
[1763826846429,3.08,126.68,126.64,3.07]
[1763826847333,0.05825553,126.67,126.65,0.05490127]
[1763826850542,3.13825553,126.67,126.65,0.05490127]
[1763826851142,0.05825553,126.67,126.65,3.12490127]
[1763826852134,5.4760003,126.7,126.65,3.12490127]
[1763826852135,3.08,126.7,126.66,3.07]
[1763826852335,3.08,126.71,126.66,3.07]
[1763826853333,7.1069,126.72,126.67,3.07]
[1763826853542,12.5821003,126.74,126.68,3.12810289]
[1763826853736,3.08,126.73,126.7,3.07]
[1763826854040,3.08,126.73,126.7,3.12576759]
[1763826855245,3.08,126.75,126.7,3.12576759]
[1763826855446,3.08,126.75,126.71,3.07]
[1763826859246,3.08,126.73,126.7,0.05576759]
[1763826860457,3.08,126.73,126.7,3.12576759]
[1763826862961,3.08,126.73,126.7,0.05576759]
[1763826863359,3.08,126.73,126.7,3.12576759]
[1763826863664,3.08,126.73,126.7,0.05576759]
[1763826864867,3.08,126.73,126.7,3.12576759]
[1763826865067,3.08,126.75,126.71,3.07]
[1763826865364,3.08,126.73,126.7,0.05576759]
[1763826865553,3.08,126.73,126.7,3.12576759]
[1763826866554,10.185,126.76,126.7,3.12576759]
[1763826866958,3.08,126.74,126.7,0.05576759]
[1763826867160,3.08,126.74,126.7,3.12576759]
[1763826869671,3.08,126.74,126.71,3.07]
[1763826869870,3.08,126.74,126.7,10.23356759]
[1763826870670,3.08,126.74,126.7,3.12576759]
[1763826870872,3.08,126.74,126.7,0.05576759]
[1763826872071,3.08,126.72,126.7,0.05576759]
[1763826872267,5.4760003,126.71,126.7,0.05576759]
[1763826874875,3.08,126.69,126.65,3.07]
[1763826875568,3.08,126.68,126.64,15.5070003]
[1763826875771,0.0559614,126.67,126.65,0.05182118]
[1763826875974,5.6219617,126.67,126.65,0.05182118]
[1763826876159,3.17,126.66,126.65,0.05182118]
[1763826877060,3.17,126.66,126.6,14.75038363]
[1763826877275,3.17,126.64,126.58,27.37088393]
[1763826877465,3.17,126.64,126.59,3.11]
[1763826878162,3.25288805,126.63,126.6,3.06040639]
[1763826880580,0.05288805,126.63,126.6,3.06040639]
[1763826880873,0.05288805,126.63,126.61,3.01]
[1763826881574,3.25288805,126.63,126.6,0.05040639]
[1763826881775,3.2,126.62,126.6,0.05040639]
[1763826881965,3.2,126.62,126.56,6.0]
[1763826882169,110.6242,126.64,126.55,5.4060003]
[1763826882170,5.5960003,126.61,126.55,5.4060003]
[1763826882369,3.2,126.6,126.55,5.4060003]
[1763826883075,3.25028644,126.59,126.56,3.06553948]
[1763826883275,0.05028644,126.59,126.56,3.06553948]
[1763826884074,0.05028644,126.59,126.58,3.01]
[1763826885078,3.2,126.64,126.59,5.4060003]
[1763826885876,3.2530801,126.63,126.6,0.06000149]
[1763826888168,3.2530801,126.63,126.6,3.07000149]
[1763826890687,0.0530801,126.63,126.6,3.07000149]
[1763826891981,3.2530801,126.63,126.6,3.07000149]
[1763826892380,0.0530801,126.63,126.6,3.07000149]
[1763826893280,0.0530801,126.63,126.6,10.18350149]
[1763826893480,0.0530801,126.63,126.61,3.01]
[1763826893887,0.0530801,126.63,126.62,3.01]
[1763826894491,5.28,126.67,126.64,3.01]
[1763826894785,3.2,126.68,126.64,3.01]
[1763826895586,3.2,126.66,126.65,0.05371293]
[1763826898686,3.24995728,126.67,126.65,0.05371293]
[1763826898885,0.04995728,126.67,126.65,3.06371293]
[1763826899783,0.04995728,126.67,126.65,10.17421293]
[1763826899981,0.04995728,126.67,126.66,3.01]
[1763826900587,19.86,126.72,126.68,3.01]
[1763826900981,3.2,126.71,126.68,3.01]
[1763826901183,3.2,126.7,126.64,6.0]
[1763826901481,3.2,126.7,126.62,3.01]
[1763826901686,3.2,126.7,126.65,0.05434532]
[1763826902086,3.2,126.7,126.65,3.06434532]
[1763826903590,19.86,126.72,126.68,3.01]
[1763826903798,3.2,126.71,126.69,0.05176849]
[1763826904191,10.3062,126.74,126.69,3.06176849]
[1763826904394,3.2,126.74,126.69,3.06176849]
[1763826904889,3.2,126.74,126.7,3.01]
[1763826906800,3.2,126.74,126.69,0.05176849]
[1763826907002,3.0,126.72,126.69,0.05176849]
[1763826907686,3.0,126.7,126.69,0.05176849]
[1763826910805,3.0,126.69,126.64,3.23]
[1763826911699,3.0,126.68,126.64,3.23]
[1763826912003,3.06014595,126.68,126.65,0.06067637]
[1763826913807,3.0,126.67,126.65,0.06067637]
[1763826915201,3.06014595,126.68,126.65,0.06067637]
[1763826916403,3.0,126.67,126.59,14.75038363]
[1763826916807,3.0,126.65,126.59,17.98038363]
[1763826917410,0.04981761,126.63,126.61,3.28092384]
[1763826917713,3.04981761,126.63,126.61,0.05092384]
[1763826919208,3.0,126.62,126.61,0.05092384]
[1763826919912,3.0,126.62,126.57,10.3451]
[1763826921108,3.0,126.62,126.58,0.05712602]
[1763826921810,3.0,126.62,126.58,3.28712602]
[1763826924714,10.1126,126.62,126.58,0.05712602]
[1763826924912,3.0,126.62,126.58,0.05712602]
[1763826925123,3.0,126.61,126.58,0.05712602]
[1763826925433,3.0,126.6,126.58,0.05712602]
[1763826925724,3.05766538,126.6,126.58,0.05712602]
[1763826927317,3.0,126.57,126.53,3.23]
[1763826928327,0.05185044,126.56,126.54,0.05059322]
[1763826928530,3.05185044,126.56,126.54,0.05059322]
[1763826934234,0.05185044,126.56,126.54,3.28059322]
[1763826935831,0.05185044,126.56,126.54,10.39749322]
[1763826936030,3.24,126.64,126.56,3.01]
[1763826936232,3.24,126.64,126.58,3.01]
[1763826936434,3.24,126.64,126.6,3.01]
[1763826937022,0.05751365,126.63,126.62,3.01]
[1763826937331,3.24,126.67,126.62,3.01]
[1763826938224,3.24,126.67,126.61,0.05204079]
[1763826938425,3.2132164,126.65,126.61,3.05204079]
[1763826938622,3.2132164,126.65,126.62,0.05600613]
[1763826940633,3.16,126.63,126.62,0.05600613]
[1763826941436,3.16,126.63,126.58,3.0]
[1763826941437,3.16,126.61,126.56,6.74635513]
[1763826941623,3.16,126.61,126.56,3.0]
[1763826942024,3.16,126.61,126.56,9.0]
[1763826942224,3.16,126.6,126.54,3.74635513]
[1763826942538,3.16,126.6,126.56,0.05146843]
[1763826942539,0.05379942,126.58,126.56,0.05146843]
[1763826943131,0.05379942,126.58,126.56,3.05146843]
[1763826943937,3.16,126.63,126.58,3.0]
[1763826944837,0.05196011,126.62,126.59,3.05675603]
[1763826946539,3.21196011,126.62,126.59,3.05675603]
[1763826946734,0.05196011,126.62,126.59,3.05675603]
[1763826947540,0.05196011,126.62,126.59,10.17075603]
[1763826948039,0.05196011,126.62,126.6,3.0]
[1763826948929,0.05196011,126.62,126.6,7.1135]
[1763826949130,3.16,126.66,126.61,3.0]
[1763826949332,3.16,126.66,126.58,9.0]
[1763826949540,3.16,126.66,126.58,3.0]
[1763826950237,3.21919846,126.63,126.61,0.05936377]
[1763826956340,0.05919846,126.63,126.61,3.05936377]
[1763826956540,3.21919846,126.63,126.61,0.05936377]
[1763826960742,0.05919846,126.63,126.61,3.05936377]
[1763826960947,3.16,126.66,126.62,3.0]
[1763826962643,3.16,126.66,126.63,3.0]
[1763826962839,10.269,126.69,126.63,3.0]
[1763826963146,3.16,126.68,126.65,0.05028297]
[1763826964644,3.16,126.68,126.65,3.05028297]
[1763826965149,3.16,126.68,126.65,0.05028297]
[1763826968052,3.16,126.68,126.65,3.29028297]
[1763826968458,3.16,126.68,126.65,0.05028297]
[1763826968661,3.17,126.65,126.57,14.75038363]
[1763826968947,3.17,126.6,126.56,3.24]
[1763826969147,3.17,126.6,126.56,17.99038363]
[1763826969348,3.17,126.63,126.58,3.24]
[1763826969644,0.05313346,126.62,126.6,3.24]
[1763826971044,0.05313346,126.62,126.61,3.24]
[1763826971858,3.17,126.66,126.62,3.24]
[1763826972854,3.17,126.66,126.63,0.05566157]
[1763826974150,3.17,126.66,126.63,3.29566157]
[1763826974846,5.56377766,126.68,126.63,3.29566157]
[1763826975056,3.17,126.71,126.65,2.39377766]
[1763826975259,3.17,126.71,126.67,0.0538464]
[1763826976160,3.17,126.7,126.67,0.0538464]
[1763826982366,3.17,126.7,126.67,3.2938464]
[1763826982676,3.17,126.7,126.67,0.0538464]
[1763826985473,113.7419,126.7,126.67,0.0538464]
[1763826985683,113.7419,126.7,126.62,20.75038363]
[1763826985684,3.17,126.68,126.61,23.99038363]
[1763826985968,3.17,126.66,126.61,23.99038363]
[1763826986168,3.17,126.66,126.59,6.64630843]
[1763826986169,3.17,126.66,126.59,24.63669206]
[1763826986375,3.17,126.66,126.6,3.24]
[1763826986673,3.22160918,126.64,126.62,0.05129775]
[1763826987474,3.17,126.63,126.57,3.24]
[1763826988468,110.6214,126.64,126.57,3.24]
[1763826988469,3.22027298,126.61,126.59,0.05367003]
[1763826995083,0.05027298,126.61,126.6,3.24]
[1763826995272,3.17,126.65,126.61,3.24]
[1763826996284,0.05881624,126.64,126.62,3.17030469]
[1763827001179,0.05881624,126.64,126.62,0.05030469]
[1763827001180,3.21881624,126.64,126.62,0.05030469]
[1763827005389,3.16,126.62,126.55,20.27494882]
[1763827005592,3.16,126.6,126.55,20.27494882]
[1763827006085,3.16,126.6,126.56,17.88038363]
[1763827006390,0.05296536,126.59,126.57,0.05342478]
[1763827006988,3.21296536,126.59,126.57,0.05342478]
[1763827008284,0.05296536,126.59,126.57,3.18342478]
[1763827008983,0.05296536,126.59,126.57,10.29852478]
[1763827011888,7.1112,126.65,126.58,3.13]
[1763827012093,3.16,126.64,126.59,10.244]
[1763827012291,3.16,126.64,126.6,3.13]
[1763827012688,3.16,126.66,126.61,3.13]
[1763827013088,3.21397227,126.65,126.62,0.0549193]
[1763827013292,3.21397227,126.65,126.62,3.1849193]
[1763827013493,0.05397227,126.65,126.62,3.1849193]
[1763827013693,3.21397227,126.65,126.62,3.1849193]
[1763827014094,3.21397227,126.65,126.62,10.2973193]
[1763827014602,0.05397227,126.65,126.63,3.13]
[1763827015095,0.05397227,126.65,126.63,10.2417]
[1763827015293,0.05397227,126.65,126.64,3.13]
[1763827016798,0.05397227,126.65,126.63,3.13]
[1763827017993,0.05397227,126.65,126.63,10.2418]
[1763827019791,0.05397227,126.65,126.63,3.13]
[1763827023594,3.21397227,126.65,126.62,16.6949193]
[1763827023800,0.05397227,126.65,126.63,3.13]
[1763827025007,0.05397227,126.65,126.63,10.2418]
[1763827025608,0.05397227,126.65,126.64,3.13]
[1763827026507,10.1779,126.71,126.65,3.27]
[1763827026705,3.07,126.71,126.65,3.27]
[1763827027211,3.07,126.74,126.69,3.27]
[1763827027606,3.07,126.74,126.71,3.27]
[1763827029908,3.07,126.76,126.71,3.27]
[1763827030210,3.07,126.8,126.73,3.27]
[1763827030408,3.07,126.8,126.75,0.05929346]
[1763827030795,3.07,126.78,126.75,0.05929346]
[1763827032208,3.07,126.76,126.75,0.05929346]
[1763827032713,3.07,126.75,126.69,23.65368425]
[1763827033102,3.07,126.75,126.69,19.91]
[1763827033301,3.07,126.75,126.7,3.27]
[1763827033706,0.05375527,126.74,126.71,3.33028353]
[1763827034110,3.12375527,126.74,126.71,3.33028353]
[1763827035804,3.07,126.73,126.71,0.06028353]
[1763827037004,3.12375527,126.74,126.71,3.33028353]
[1763827037602,0.05375527,126.74,126.71,3.33028353]
[1763827042612,0.05375527,126.74,126.71,9.33028353]
[1763827042809,0.05375527,126.74,126.72,3.27]
[1763827047023,3.12375527,126.74,126.71,0.06028353]
[1763827047519,3.07,126.72,126.71,0.06028353]
[1763827050525,3.07,126.73,126.71,0.06028353]
[1763827052521,3.07,126.73,126.71,3.33028353]
[1763827052722,0.05375527,126.74,126.71,3.33028353]
[1763827053114,3.07,126.79,126.73,3.27]
[1763827054020,3.07,126.79,126.75,0.06058096]
[1763827054219,3.07,126.79,126.75,3.33058096]
[1763827054633,3.07,126.78,126.75,0.06058096]
[1763827055229,3.07,126.78,126.75,3.33058096]
[1763827056427,10.1736,126.78,126.75,0.06058096]
[1763827056626,3.32,126.77,126.75,0.06058096]
[1763827059628,3.21,126.76,126.75,0.06058096]
[1763827059826,3.21,126.76,126.7,3.11]
[1763827060925,3.21,126.73,126.72,0.05115679]
[1763827065837,3.21,126.73,126.66,9.11]
[1763827066036,3.21,126.73,126.67,3.11]
[1763827066538,3.21,126.72,126.67,3.11]
[1763827066738,3.27070022,126.71,126.68,3.16636947]
[1763827067541,3.27070022,126.71,126.68,0.05636947]
[1763827067742,3.27070022,126.71,126.68,3.16636947]
[1763827071044,3.27070022,126.71,126.68,0.05636947]
[1763827072745,3.27070022,126.71,126.68,3.16636947]
[1763827075550,0.06070022,126.71,126.69,3.11]
[1763827075749,3.27070022,126.71,126.69,3.11]
[1763827076648,0.06070022,126.71,126.69,17.86038363]
[1763827077650,0.06070022,126.71,126.69,24.96888363]
[1763827078049,0.06070022,126.71,126.7,3.11]
[1763827078551,0.06070022,126.71,126.69,24.96888363]
[1763827078952,0.06070022,126.71,126.69,17.86038363]
[1763827080752,0.06070022,126.71,126.69,3.11]
[1763827080955,0.06070022,126.71,126.69,24.96868363]
[1763827081154,3.27070022,126.71,126.69,24.96868363]
[1763827082052,0.06070022,126.71,126.69,21.85868363]
[1763827082258,0.06070022,126.71,126.69,10.2183]
[1763827082459,0.06070022,126.71,126.7,3.11]
[1763827085849,0.06070022,126.71,126.69,17.88038363]
[1763827086056,3.22070022,126.71,126.69,3.13]
[1763827086256,0.06070022,126.71,126.7,3.13]
[1763827088461,0.06070022,126.71,126.7,17.88038363]
[1763827089562,3.16,126.75,126.71,3.13]
[1763827089762,3.16,126.75,126.71,17.85721395]
[1763827090466,3.21310937,126.74,126.72,0.05481225]
[1763827090860,3.21310937,126.74,126.72,3.18481225]
[1763827091764,3.21310937,126.74,126.72,0.05481225]
[1763827092568,3.21310937,126.74,126.72,3.18481225]
[1763827093470,3.21310937,126.74,126.72,0.05481225]
[1763827093772,3.21310937,126.74,126.72,3.18481225]
[1763827095473,14.2028,126.82,126.72,3.18481225]
[1763827095474,3.16,126.8,126.75,3.13]
[1763827095674,3.16,126.8,126.76,3.13]
[1763827095864,3.16,126.8,126.78,3.13]
[1763827096064,3.16,126.8,126.75,14.72721395]
[1763827096262,3.16,126.79,126.74,17.85721395]
[1763827096469,3.16,126.79,126.75,3.1880777]
[1763827097770,3.16,126.81,126.75,17.91529165]
[1763827097967,3.16,126.81,126.76,3.13]
[1763827098169,3.16,126.81,126.77,3.13]
[1763827098369,3.16,126.81,126.78,0.05502812]
[1763827099073,3.16,126.81,126.78,5.57732897]
[1763827100169,3.16,126.83,126.79,3.13]
[1763827102866,3.16,126.83,126.78,2.44732897]
[1763827102867,3.16,126.83,126.78,0.05502812]
[1763827103478,3.16,126.83,126.78,3.18502812]
[1763827103877,3.16,126.83,126.78,0.05502812]
[1763827104079,7.1014,126.82,126.78,0.05502812]
[1763827104280,3.16,126.81,126.78,3.18502812]
[1763827107982,3.16,126.83,126.78,3.18502812]
[1763827109872,3.16,126.83,126.8,3.13]
[1763827110979,3.16,126.84,126.8,3.13]
[1763827111285,3.16,126.86,126.82,3.13]
[1763827112477,2.39230085,126.89,126.84,3.13]
[1763827112478,3.16,126.89,126.84,3.13]
[1763827112675,3.16,126.92,126.88,3.13]
[1763827112986,3.16,126.92,126.89,0.05603935]
[1763827114280,3.16,126.92,126.89,3.18603935]
[1763827114580,3.16,126.92,126.89,0.05603935]
[1763827116585,3.16,126.92,126.89,3.09603935]
[1763827117489,3.05,126.93,126.89,3.09603935]
[1763827117788,10.1444,126.95,126.89,3.09603935]
[1763827118087,3.05,126.94,126.89,3.09603935]
[1763827119087,3.05,126.94,126.89,10.19323935]
[1763827119385,3.05,126.94,126.9,3.18]
[1763827120689,3.05,126.96,126.91,3.18]
[1763827120888,3.05,126.96,126.92,3.23950278]
[1763827121190,3.05,126.95,126.92,0.05950278]
[1763827121689,3.05,126.95,126.92,3.23950278]
[1763827122279,5.44230085,126.99,126.92,3.23950278]
[1763827122484,3.05,126.98,126.93,3.18]
[1763827122686,3.05,126.98,126.94,0.0523725]
[1763827123383,10.1426,126.98,126.94,0.0523725]
[1763827123584,3.05,126.97,126.94,3.2323725]
[1763827124591,10.1415,127.0,126.94,3.2323725]
[1763827126296,3.05,126.99,126.94,3.2323725]
[1763827128885,3.05,126.98,126.94,0.0523725]
[1763827129289,6.77197809,126.98,126.94,0.0523725]
[1763827129584,3.05,126.97,126.94,0.0523725]
[1763827129978,3.05,126.95,126.94,0.0523725]
[1763827130179,3.05,126.95,126.88,3.18]
[1763827131395,3.10335373,126.93,126.9,0.05851766]
[1763827131589,3.10335373,126.93,126.9,3.23851766]
[1763827132395,0.05335373,126.93,126.9,3.23851766]
[1763827134205,3.10335373,126.93,126.9,3.23851766]
[1763827135296,0.05335373,126.93,126.9,3.23851766]
[1763827137004,3.10335373,126.93,126.9,3.23851766]
[1763827137201,0.05335373,126.93,126.9,10.33511766]
[1763827137402,0.05335373,126.93,126.91,3.18]
[1763827138002,0.05335373,126.93,126.92,3.18]
[1763827140699,3.05,126.99,126.94,3.18]
[1763827141203,3.05,127.0,126.96,3.18]
[1763827141695,3.05,127.0,126.97,0.05538937]
[1763827142298,3.05,127.0,126.97,3.23538937]
[1763827144301,3.05,127.03,126.97,3.23538937]
[1763827144599,3.05,127.05,126.97,3.23538937]
[1763827144803,3.05,127.05,126.96,114.06027809]
[1763827144804,3.05,127.05,127.01,3.18]
[1763827145099,3.05,127.08,127.01,3.18]
[1763827145301,3.05,127.08,127.04,3.18]
[1763827145800,7.086,127.1,127.04,3.18]
[1763827146003,3.29,127.09,127.06,0.05015409]
[1763827146501,3.29,127.11,127.06,3.04015409]
[1763827146807,16.58,127.13,127.06,3.04015409]
[1763827147602,3.29,127.14,127.07,2.99]
[1763827147908,3.29,127.14,127.09,3.04483208]
[1763827151300,3.29,127.13,127.09,0.05483208]
[1763827152411,3.29,127.13,127.09,3.04483208]
[1763827154409,3.29,127.13,127.09,0.05483208]
[1763827155315,3.29,127.13,127.09,3.04483208]
[1763827155905,110.1679,127.17,127.09,3.04483208]